fUST/lending_fUST_20250731
["ID","MTS","AMOUNT","RATE_DAILY","PERIOD"]
[376330487,1753935042613,-460.0,0.00019726,2]
[376330488,1753935042622,-442.54019583,0.00019726,2]
[376330489,1753935042632,-460.0,0.00019726,2]
[376330490,1753935042642,-460.0,0.00019726,2]
[376330492,1753935042651,-460.0,0.00019726,2]
[376330494,1753935042796,-460.0,0.00019726,2]
[376330495,1753935042807,-460.0,0.00019726,2]
[376330496,1753935042817,-255.11604133,0.00019726,2]
[376330498,1753935042828,-460.0,0.00019726,2]
[376330499,1753935042838,-460.0,0.00019726,2]
[376330500,1753935042847,-460.0,0.00019726,2]
[376330501,1753935042857,-460.0,0.00019726,2]
[376330503,1753935042866,-460.0,0.00019726,2]
[376330505,1753935042875,-460.0,0.00019726,2]
[376330507,1753935042885,-460.0,0.00019726,2]
[376330509,1753935042895,-1091.09,0.00019726,2]
[376330511,1753935042904,-1349.18,0.00019726,2]
[376330513,1753935042914,-582.26,0.00019726,2]
[376330515,1753935042923,-460.0,0.00019726,2]
[376330517,1753935042932,-460.0,0.00019726,2]
[376330519,1753935042942,-460.0,0.00019726,2]
[376330521,1753935042951,-460.0,0.00019726,2]
[376330523,1753935042961,-460.0,0.00019726,2]
[376330525,1753935042971,-460.0,0.00019726,2]
[376330527,1753935042980,-460.0,0.00019726,2]
[376330529,1753935042989,-460.0,0.00019726,2]
[376330531,1753935042998,-838.15,0.00019726,2]
[376330533,1753935043009,-460.0,0.00019726,2]
[376330535,1753935043019,-1290.12,0.00019726,2]
[376330537,1753935043028,-460.0,0.00019726,2]
[376330539,1753935043037,-1000.6,0.00019726,2]
[376330541,1753935043046,-460.0,0.00019726,2]
[376330543,1753935043056,-460.0,0.00019726,2]
[376330545,1753935043065,-460.0,0.00019726,2]
[376330547,1753935043075,-460.0,0.00019726,2]
[376330549,1753935043085,-460.0,0.00019726,2]
[376330551,1753935043095,-460.0,0.00019726,2]
[376330553,1753935043105,-460.0,0.00019726,2]
[376330556,1753935043114,-460.0,0.00019726,2]
[376330558,1753935043124,-460.0,0.00019726,2]
[376330560,1753935043134,-460.0,0.00019726,2]
[376330562,1753935043143,-460.0,0.00019726,2]
[376330563,1753935043153,-460.0,0.00019726,2]
[376330566,1753935043164,-988.83,0.00019726,2]
[376330568,1753935043173,-1244.93,0.00019726,2]
[376330569,1753935043183,-460.0,0.00019726,2]
[376330571,1753935043192,-460.0,0.00019726,2]
[376330573,1753935043201,-1262.25,0.00019726,2]
[376330575,1753935043211,-460.0,0.00019726,2]
[376330577,1753935043220,-460.0,0.00019726,2]
[376330580,1753935043230,-460.0,0.00019726,2]
[376330581,1753935043239,-1422.93,0.00019726,2]
[376330583,1753935043249,-460.0,0.00019726,2]
[376330585,1753935043259,-460.0,0.00019726,2]
[376330587,1753935043268,-460.0,0.00019726,2]
[376330590,1753935043278,-460.0,0.00019726,2]
[376330592,1753935043287,-460.0,0.00019726,2]
[376330594,1753935043297,-460.0,0.00019726,2]
[376330596,1753935043306,-850.31,0.00019726,2]
[376330598,1753935043315,-460.0,0.00019726,2]
[376330600,1753935043324,-460.0,0.00019726,2]
[376330602,1753935043333,-632.38,0.00019726,2]
[376330604,1753935043343,-392.15,0.00019726,2]
[376330606,1753935043352,-460.0,0.00019726,2]
[376330608,1753935043361,-460.0,0.00019726,2]
[376330610,1753935043371,-460.0,0.00019726,2]
[376330612,1753935043380,-460.0,0.00019726,2]
[376330614,1753935043389,-483.36181266,0.00019726,2]
[376330616,1753935043398,-460.0,0.00019726,2]
[376330618,1753935043408,-460.0,0.00019726,2]
[376330620,1753935043417,-460.0,0.00019726,2]
[376330622,1753935043426,-1008.44,0.00019726,2]
[376330624,1753935043436,-503.29,0.00019726,2]
[376330626,1753935043445,-460.0,0.00019726,2]
[376330628,1753935043455,-1534.56,0.00019726,2]
[376330630,1753935043464,-586.04,0.00019726,2]
[376330632,1753935043473,-2486.14,0.00019726,2]
[376330634,1753935043482,-160.0,0.00019747,2]
[376330636,1753935043492,-2229.6602215,0.00019833,2]
[376330638,1753935043501,-298.54668281,0.00019886,2]
[376330639,1753935043510,-1269.6233217,0.000199,2]
[376330640,1753935043519,-500.0,0.00019973,2]
[376330641,1753935043528,-600.0,0.00019973,2]
[376330642,1753935043537,-500.0,0.00019973,2]
[376330643,1753935043548,-502.5635618,0.00019973,2]
[376330644,1753935043558,-539.4923896,0.00019973,2]
[376330645,1753935043567,-500.0,0.00019973,2]
[376330646,1753935043576,-504.24656835,0.00019973,2]
[376330647,1753935043586,-500.0,0.00019973,2]
[376330648,1753935043595,-100000.0,0.0001999,2]
[376330649,1753935043605,-3313.19972023,0.0002,7]
[376330650,1753935043614,-460.0,0.0002,2]
[376330651,1753935043623,-460.0,0.0002,2]
[376330652,1753935043633,-460.0,0.0002,2]
[376330653,1753935043642,-309.06541696,0.0002,2]
[376330654,1753935043652,-307.94196768,0.0002,2]
[376330655,1753935043662,-460.0,0.0002,2]
[376330656,1753935043672,-460.0,0.0002,2]
[376330657,1753935043681,-460.0,0.0002,2]
[376330658,1753935043691,-460.0,0.0002,2]
[376330659,1753935043700,-460.0,0.0002,2]
[376330660,1753935043710,-182.19361052,0.0002,2]
[376330661,1753935043719,-460.0,0.0002,2]
[376330662,1753935043728,-460.0,0.0002,2]
[376330663,1753935043738,-460.0,0.0002,2]
[376330664,1753935043747,-460.0,0.0002,2]
[376330665,1753935043756,-460.0,0.0002,2]
[376330666,1753935043765,-460.0,0.0002,2]
[376330667,1753935043776,-460.0,0.0002,2]
[376330668,1753935043786,-460.0,0.0002,2]
[376330669,1753935043797,-1091.09,0.0002,2]
[376330670,1753935043807,-1349.18,0.0002,2]
[376330671,1753935043818,-582.26,0.0002,2]
[376330672,1753935043827,-460.0,0.0002,2]
[376330673,1753935043836,-337.23601266,0.0002,2]
[376330674,1753935043846,-460.0,0.0002,2]
[376330675,1753935043855,-460.0,0.0002,2]
[376330676,1753935043866,-460.0,0.0002,2]
[376330677,1753935043876,-460.0,0.0002,2]
[376330678,1753935043885,-460.0,0.0002,2]
[376330679,1753935043895,-521.80569932,0.0002,2]
[376330680,1753935043904,-838.15,0.0002,2]
[376330681,1753935043913,-460.0,0.0002,2]
[376330682,1753935043923,-1290.12,0.0002,2]
[376330683,1753935043932,-460.0,0.0002,2]
[376330684,1753935043942,-1000.6,0.0002,2]
[376330685,1753935043952,-460.0,0.0002,2]
[376330686,1753935043962,-460.0,0.0002,2]
[376330687,1753935043972,-460.0,0.0002,2]
[376330688,1753935043981,-460.0,0.0002,2]
[376330689,1753935043991,-460.0,0.0002,2]
[376330690,1753935044000,-460.0,0.0002,2]
[376330691,1753935044010,-460.0,0.0002,2]
[376330692,1753935044019,-460.0,0.0002,2]
[376330693,1753935044029,-460.0,0.0002,2]
[376330694,1753935044039,-460.0,0.0002,2]
[376330695,1753935044049,-988.83,0.0002,2]
[376330696,1753935044058,-1244.93,0.0002,2]
[376330697,1753935044067,-460.0,0.0002,2]
[376330698,1753935044077,-460.0,0.0002,2]
[376330699,1753935044086,-1262.25,0.0002,2]
[376330700,1753935044096,-460.0,0.0002,2]
[376330701,1753935044106,-204.9,0.0002,2]
[376330702,1753935044116,-160.5728854,0.0002,2]
[376330703,1753935044126,-1422.93,0.0002,2]
[376330704,1753935044135,-460.0,0.0002,2]
[376330705,1753935044145,-460.0,0.0002,2]
[376330706,1753935044156,-460.0,0.0002,2]
[376330707,1753935044165,-850.31,0.0002,2]
[376330708,1753935044174,-460.0,0.0002,2]
[376330709,1753935044184,-460.0,0.0002,2]
[376330710,1753935044193,-632.38,0.0002,2]
[376330711,1753935044203,-460.0,0.0002,2]
[376330712,1753935044212,-460.0,0.0002,2]
[376330713,1753935044223,-460.0,0.0002,2]
[376330714,1753935044232,-460.0,0.0002,2]
[376330715,1753935044241,-460.0,0.0002,2]
[376330716,1753935044252,-1008.44,0.0002,2]
[376330717,1753935044262,-460.0,0.0002,2]
[376330718,1753935044273,-1534.56,0.0002,2]
[376330719,1753935044282,-586.04,0.0002,2]
[376330720,1753935044291,-2486.14,0.0002,2]
[376330721,1753935044301,-1269.62332144,0.00020141,2]
[376330722,1753935044311,-198.24351194,0.00020268,2]
[376330723,1753935044320,-460.0,0.00020273,2]
[376330724,1753935044330,-460.0,0.00020273,2]
[376330725,1753935044339,-460.0,0.00020273,2]
[376330726,1753935044348,-460.0,0.00020273,2]
[376330727,1753935044357,-460.0,0.00020273,2]
[376330728,1753935044367,-162.96455665,0.00020273,2]
[376330729,1753935044376,-460.0,0.00020273,2]
[376330730,1753935044385,-460.0,0.00020273,2]
[376330731,1753935044395,-460.0,0.00020273,2]
[376330732,1753935044404,-460.0,0.00020273,2]
[376330733,1753935044414,-460.0,0.00020273,2]
[376330734,1753935044423,-460.0,0.00020273,2]
[376330735,1753935044432,-460.0,0.00020273,2]
[376330736,1753935044442,-460.0,0.00020273,2]
[376330737,1753935044452,-460.0,0.00020273,2]
[376330738,1753935044461,-460.0,0.00020273,2]
[376330739,1753935044471,-1091.09,0.00020273,2]
[376330740,1753935044480,-1349.18,0.00020273,2]
[376330741,1753935044490,-582.26,0.00020273,2]
[376330742,1753935044500,-460.0,0.00020273,2]
[376330743,1753935044509,-204.28765321,0.00020273,2]
[376330744,1753935044520,-460.0,0.00020273,2]
[376330745,1753935044530,-460.0,0.00020273,2]
[376330746,1753935044539,-460.0,0.00020273,2]
[376330747,1753935044550,-460.0,0.00020273,2]
[376330748,1753935044560,-838.15,0.00020273,2]
[376330749,1753935044569,-460.0,0.00020273,2]
[376330750,1753935044580,-1290.12,0.00020273,2]
[376330751,1753935044589,-460.0,0.00020273,2]
[376330752,1753935044598,-1000.6,0.00020273,2]
[376330753,1753935044608,-460.0,0.00020273,2]
[376330754,1753935044618,-460.0,0.00020273,2]
[376330755,1753935044629,-460.0,0.00020273,2]
[376330756,1753935044639,-460.0,0.00020273,2]
[376330757,1753935044649,-460.0,0.00020273,2]
[376330758,1753935044660,-460.0,0.00020273,2]
[376330759,1753935044669,-460.0,0.00020273,2]
[376330760,1753935044678,-460.0,0.00020273,2]
[376330761,1753935044688,-460.0,0.00020273,2]
[376330762,1753935044697,-460.0,0.00020273,2]
[376330763,1753935044706,-988.83,0.00020273,2]
[376330764,1753935044715,-1244.93,0.00020273,2]
[376330765,1753935044726,-523.01687562,0.00020273,2]
[376330766,1753935044736,-460.0,0.00020273,2]
[376330767,1753935044746,-1262.25,0.00020273,2]
[376330768,1753935044755,-1422.93,0.00020273,2]
[376330769,1753935044765,-460.0,0.00020273,2]
[376330770,1753935044774,-460.0,0.00020273,2]
[376330771,1753935044784,-460.0,0.00020273,2]
[376330772,1753935044795,-850.31,0.00020273,2]
[376330773,1753935044804,-460.0,0.00020273,2]
[376330774,1753935044813,-460.0,0.00020273,2]
[376330775,1753935044824,-460.0,0.00020273,2]
[376330776,1753935044835,-632.38,0.00020273,2]
[376330777,1753935044845,-460.0,0.00020273,2]
[376330778,1753935044854,-460.0,0.00020273,2]
[376330779,1753935044867,-460.0,0.00020273,2]
[376330780,1753935044876,-460.0,0.00020273,2]
[376330781,1753935044886,-1008.44,0.00020273,2]
[376330782,1753935044895,-1534.56,0.00020273,2]
[376330783,1753935044905,-586.04,0.00020273,2]
[376330784,1753935044916,-2486.14,0.00020273,2]
[376330785,1753935044925,-260.0,0.00020295,2]
[376330786,1753935044935,-1269.62332144,0.00020383,3]
[376330787,1753935044945,-1964.16,0.00020438,3]
[376330788,1753935044954,-982.08,0.00020438,3]
[376330789,1753935044964,-491.04,0.00020438,3]
[376330790,1753935044973,-500.81836295,0.00020521,2]
[376330791,1753935044983,-1200.0,0.00020521,2]
[376330792,1753935044993,-1000.0,0.00020521,2]
[376330793,1753935045002,-501.29726446,0.00020521,2]
[376330794,1753935045012,-460.0,0.00020547,2]
[376330795,1753935045022,-607.64915748,0.00020547,2]
[376330796,1753935045031,-460.0,0.00020547,2]
[376330797,1753935045041,-281.98128384,0.00020547,2]
[376330798,1753935045050,-460.0,0.00020547,2]
[376330799,1753935045059,-460.0,0.00020547,2]
[376330800,1753935045069,-460.0,0.00020547,2]
[376330801,1753935045078,-460.0,0.00020547,2]
[376330802,1753935045119,-460.0,0.00020547,2]
[376330803,1753935045129,-460.0,0.00020547,2]
[376330804,1753935045138,-460.0,0.00020547,2]
[376330805,1753935045147,-460.0,0.00020547,2]
[376330806,1753935045156,-460.0,0.00020547,2]
[376330807,1753935045166,-460.0,0.00020547,2]
[376330808,1753935045175,-460.0,0.00020547,2]
[376330809,1753935045184,-1091.09,0.00020547,2]
[376330810,1753935045193,-1349.18,0.00020547,2]
[376330811,1753935045203,-582.26,0.00020547,2]
[376330812,1753935045213,-460.0,0.00020547,2]
[376330813,1753935045222,-460.0,0.00020547,2]
[376330814,1753935045231,-460.0,0.00020547,2]
[376330815,1753935045240,-460.0,0.00020547,2]
[376330816,1753935045250,-460.0,0.00020547,2]
[376330817,1753935045259,-838.15,0.00020547,2]
[376330818,1753935045269,-460.0,0.00020547,2]
[376330819,1753935045279,-1290.12,0.00020547,2]
[376330820,1753935045288,-460.0,0.00020547,2]
[376330821,1753935045298,-1000.6,0.00020547,2]
[376330822,1753935045307,-182.3,0.00020547,2]
[376330823,1753935045317,-460.0,0.00020547,2]
[376330824,1753935045326,-460.0,0.00020547,2]
[376330825,1753935045335,-460.0,0.00020547,2]
[376330826,1753935045345,-460.0,0.00020547,2]
[376330827,1753935045354,-460.0,0.00020547,2]
[376330828,1753935045363,-460.0,0.00020547,2]
[376330829,1753935045372,-460.0,0.00020547,2]
[376330830,1753935045382,-460.0,0.00020547,2]
[376330831,1753935045391,-460.0,0.00020547,2]
[376330832,1753935045401,-988.83,0.00020547,2]
[376330833,1753935045411,-1244.93,0.00020547,2]
[376330834,1753935045423,-460.0,0.00020547,2]
[376330835,1753935045432,-1262.25,0.00020547,2]
[376330836,1753935045442,-1422.93,0.00020547,2]
[376330837,1753935045452,-460.0,0.00020547,2]
[376330838,1753935045462,-460.0,0.00020547,2]
[376330839,1753935045472,-460.0,0.00020547,2]
[376330840,1753935045482,-850.31,0.00020547,2]
[376330841,1753935045491,-460.0,0.00020547,2]
[376330842,1753935045500,-460.0,0.00020547,2]
[376330843,1753935045510,-187.87342184,0.00020547,2]
[376330844,1753935045520,-632.38,0.00020547,2]
[376330845,1753935045529,-460.0,0.00020547,2]
[376330846,1753935045538,-460.0,0.00020547,2]
[376330847,1753935045549,-289.12,0.00020547,2]
[376330848,1753935045559,-209.65172473,0.00020547,2]
[376330849,1753935045569,-1008.44,0.00020547,2]
[376330850,1753935045580,-885.77167122,0.00020547,2]
[376330851,1753935045704,-648.78832878,0.00020547,2]
[376330852,1753935045713,-365.98938322,0.00020547,2]
[376330853,1753935045785,-480.035,0.00019178,2]
[376330854,1753935045800,-2783.705,0.00019178,2]
[376330855,1753935045810,-3263.74,0.00019452,2]
[376330856,1753935045819,-3263.74,0.00019726,2]
[376330857,1753935045829,-1675.08411108,0.0002,2]
[376330860,1753935046023,-911.75,0.0002,2]
[376330861,1753935046061,1020.23316828,0.00018978,2]
[376330862,1753935046083,40000.0,0.00018978,2]
[376330863,1753935046106,40000.0,0.00018978,2]
[376330864,1753935046127,40000.0,0.00018978,2]
[376330865,1753935046150,14586.49824469,0.00018978,2]
[376330878,1753935046409,-676.90588892,0.0002,2]
[376330879,1753935046419,-3263.74,0.00020273,2]
[376330881,1753935046429,-220.05061678,0.00020547,2]
[376330882,1753935046439,-2486.14,0.00020547,2]
[376330884,1753935046448,-3263.74,0.00020547,2]
[376330885,1753935046457,-500.0,0.00020572,2]
[376330887,1753935046466,-13289.3916343,0.00020581,2]
[376331021,1753935096974,319.961814,0.00018603,2]
[376331022,1753935097387,249.800756,0.00018868,2]
[376331134,1753935121869,5000.0,0.00019001,2]
[376331136,1753935147582,594.95781901,0.00019001,2]
[376331241,1753935377222,170.988972,0.00013699,2]
[376331243,1753935398679,183.50929692,0.00018603,2]
[376331270,1753935767423,242.46485735,0.000189,2]
[376331272,1753935907085,845.74929763,0.00018976,2]
[376331288,1753936016529,203.28126122,0.00018976,2]
[376331290,1753936019385,290.23968589,0.00018978,2]
[376331291,1753936021047,-290.23968586,0.00019003,2]
[376331298,1753936056024,240.076917,0.00018161,2]
[376331301,1753936068668,161.64323823,0.000189,2]
[376331314,1753936146102,5371.4928833,0.00018333,2]
[376331328,1753936210990,302.63687509,0.000189,2]
[376331383,1753936238688,-174.14381154,0.00019074,2]
[376331384,1753936238697,-174.14381151,0.00019075,2]
[376331385,1753936238707,-174.14381151,0.00019076,2]
[376331386,1753936238716,-174.14381151,0.00019076,2]
[376331387,1753936238725,-174.14381151,0.00019077,2]
[376331388,1753936238734,-165.32455461,0.00019078,2]
[376331389,1753936238743,-453.95531264,0.00019089,2]
[376331390,1753936238752,-151.65874329,0.00019166,2]
[376331391,1753936238761,-500.0,0.00019173,2]
[376331392,1753936238771,-329.38568182,0.00019173,2]
[376331393,1753936238927,-1200.0,0.00019174,2]
[376331394,1753936238937,-1200.0,0.00019175,2]
[376331395,1753936238946,-300.0,0.00019175,2]
[376331396,1753936238955,-47.8322301,0.00019175,2]
[376331430,1753936240436,-252.1677699,0.00019175,2]
[376331432,1753936240446,-300.0,0.00019175,2]
[376331435,1753936240455,-300.0,0.00019175,2]
[376331437,1753936240465,-300.0,0.00019175,2]
[376331439,1753936240475,-22716.27245124,0.00019177,2]
[376331441,1753936240484,-201.05,0.00019177,2]
[376331443,1753936240493,-309.06541696,0.00019178,2]
[376331445,1753936240503,-460.0,0.00019178,2]
[376331447,1753936240512,-428.75313287,0.00019178,2]
[376331454,1753936240571,-31.24686713,0.00019178,2]
[376331456,1753936240580,-443.50226607,0.00019178,2]
[376331729,1753936243661,-16.49773393,0.00019178,2]
[376331731,1753936243674,-460.0,0.00019178,2]
[376331734,1753936243684,-460.59662548,0.00019178,2]
[376331736,1753936243693,-460.0,0.00019178,2]
[376331737,1753936243702,-460.0,0.00019178,2]
[376331739,1753936243714,-460.0,0.00019178,2]
[376331742,1753936243724,-151.0,0.00019178,2]
[376331743,1753936243735,-460.0,0.00019178,2]
[376331745,1753936243744,-292.62510125,0.00019178,2]
[376331747,1753936243754,-151.0,0.00019178,2]
[376331749,1753936243764,-223.2516577,0.00019178,2]
[376331751,1753936243773,-460.0,0.00019178,2]
[376331753,1753936243782,-460.0,0.00019178,2]
[376331755,1753936243792,-460.0,0.00019178,2]
[376331757,1753936243802,-460.0,0.00019178,2]
[376331759,1753936243811,-460.0,0.00019178,2]
[376331761,1753936243820,-460.30645191,0.00019178,2]
[376331763,1753936243829,-460.0,0.00019178,2]
[376331765,1753936243839,-307.94196768,0.00019178,2]
[376331767,1753936243848,-460.0,0.00019178,2]
[376331769,1753936243857,-460.0,0.00019178,2]
[376331771,1753936243867,-460.0,0.00019178,2]
[376331773,1753936243876,-460.0,0.00019178,2]
[376331775,1753936243886,-155.46323122,0.00019178,2]
[376331777,1753936243895,-460.0,0.00019178,2]
[376331779,1753936243905,-460.0,0.00019178,2]
[376331781,1753936243914,-460.0,0.00019178,2]
[376331783,1753936243923,-182.19361052,0.00019178,2]
[376331785,1753936243933,-460.85157044,0.00019178,2]
[376331787,1753936243942,-460.0,0.00019178,2]
[376331789,1753936243951,-160.5728854,0.00019178,2]
[376331791,1753936243960,-460.0,0.00019178,2]
[376331793,1753936243969,-460.0,0.00019178,2]
[376331795,1753936243978,-460.0,0.00019178,2]
[376331796,1753936243987,-462.85192073,0.00019178,2]
[376331798,1753936243997,-460.0,0.00019178,2]
[376331800,1753936244006,-460.0,0.00019178,2]
[376331802,1753936244015,-460.0,0.00019178,2]
[376331804,1753936244025,-460.0,0.00019178,2]
[376331805,1753936244034,-460.0,0.00019178,2]
[376331806,1753936244043,-460.0,0.00019178,2]
[376331807,1753936244052,-513.14065251,0.00019178,2]
[376331808,1753936244061,-460.0,0.00019178,2]
[376331809,1753936244070,-460.0,0.00019178,2]
[376331810,1753936244079,-460.0,0.00019178,2]
[376331811,1753936244088,-460.0,0.00019178,2]
[376331812,1753936244097,-460.0,0.00019178,2]
[376331813,1753936244107,-460.0,0.00019178,2]
[376331814,1753936244116,-460.0,0.00019178,2]
[376331815,1753936244126,-460.0,0.00019178,2]
[376331816,1753936244135,-460.0,0.00019178,2]
[376331817,1753936244144,-466.92821183,0.00019178,2]
[376331818,1753936244153,-460.0,0.00019178,2]
[376331819,1753936244162,-460.0,0.00019178,2]
[376331820,1753936244171,-211.31705112,0.00019178,2]
[376331821,1753936244180,-460.0,0.00019178,2]
[376331822,1753936244189,-460.0,0.00019178,2]
[376331823,1753936244198,-460.0,0.00019178,2]
[376331824,1753936244207,-460.0,0.00019178,2]
[376331825,1753936244217,-460.0,0.00019178,2]
[376331826,1753936244226,-461.57647356,0.00019178,2]
[376331827,1753936244235,-460.0,0.00019178,2]
[376331828,1753936244244,-461.2517713,0.00019178,2]
[376331829,1753936244253,-460.0,0.00019178,2]
[376331830,1753936244262,-461.75209619,0.00019178,2]
[376331831,1753936244271,-285.82316878,0.00019178,2]
[376331832,1753936244280,-460.0,0.00019178,2]
[376331833,1753936244289,-460.0,0.00019178,2]
[376331834,1753936244299,-460.0,0.00019178,2]
[376331835,1753936244307,-460.0,0.00019178,2]
[376331836,1753936244316,-460.0,0.00019178,2]
[376331837,1753936244326,-460.0,0.00019178,2]
[376331838,1753936244335,-460.0,0.00019178,2]
[376331839,1753936244345,-460.0,0.00019178,2]
[376331840,1753936244354,-460.0,0.00019178,2]
[376331841,1753936244363,-460.0,0.00019178,2]
[376331842,1753936244372,-460.0,0.00019178,2]
[376331843,1753936244381,-460.0,0.00019178,2]
[376331844,1753936244391,-460.0,0.00019178,2]
[376331845,1753936244399,-460.0,0.00019178,2]
[376331846,1753936244408,-460.0,0.00019178,2]
[376331847,1753936244418,-460.81193467,0.00019178,2]
[376331848,1753936244428,-407.17987117,0.00019178,2]
[376331849,1753936244437,-460.0,0.00019178,2]
[376331850,1753936244447,-460.0,0.00019178,2]
[376331851,1753936244457,-461.10193252,0.00019178,2]
[376331852,1753936244467,-500.0,0.00019178,2]
[376331853,1753936244477,-460.0,0.00019178,2]
[376331855,1753936244487,-460.0,0.00019178,2]
[376331857,1753936244496,-500.0,0.00019178,2]
[376331859,1753936244505,-460.0,0.00019178,2]
[376331861,1753936244514,-151.0,0.00019178,2]
[376331863,1753936244523,-460.0,0.00019178,2]
[376331865,1753936244533,-461.62422757,0.00019178,2]
[376331866,1753936244542,-460.0,0.00019178,2]
[376331867,1753936244551,-337.23601266,0.00019178,2]
[376331868,1753936244561,-460.0,0.00019178,2]
[376331869,1753936244570,-459.1855882,0.00019178,2]
[376331870,1753936244579,-460.0,0.00019178,2]
[376331871,1753936244588,-460.0,0.00019178,2]
[376331872,1753936244598,-460.0,0.00019178,2]
[376331873,1753936244608,-1002.78010038,0.00019178,2]
[376331874,1753936244617,-460.0,0.00019178,2]
[376331875,1753936244626,-460.0,0.00019178,2]
[376331876,1753936244635,-460.0,0.00019178,2]
[376331877,1753936244645,-469.45063163,0.00019178,2]
[376331878,1753936244654,-460.0,0.00019178,2]
[376331879,1753936244664,-461.47483771,0.00019178,2]
[376331880,1753936244674,-460.0,0.00019178,2]
[376331881,1753936244684,-460.0,0.00019178,2]
[376331882,1753936244693,-997.06,0.00019178,2]
[376331883,1753936244702,-460.0,0.00019178,2]
[376331884,1753936244712,-1252.39,0.00019178,2]
[376331885,1753936244721,-461.839335,0.00019178,2]
[376331886,1753936244731,-460.0,0.00019178,2]
[376331887,1753936244740,-460.0,0.00019178,2]
[376331888,1753936244749,-460.0,0.00019178,2]
[376331889,1753936244759,-460.0,0.00019178,2]
[376331890,1753936244768,-460.0,0.00019178,2]
[376331891,1753936244777,-460.0,0.00019178,2]
[376331892,1753936244786,-460.0,0.00019178,2]
[376331893,1753936244796,-460.0,0.00019178,2]
[376331894,1753936244805,-702.75,0.00019178,2]
[376331895,1753936244815,-460.0,0.00019178,2]
[376331896,1753936244824,-460.0,0.00019178,2]
[376331897,1753936244834,-460.0,0.00019178,2]
[376331898,1753936244844,-460.0,0.00019178,2]
[376331899,1753936244853,-460.0,0.00019178,2]
[376331900,1753936244863,-461.02484116,0.00019178,2]
[376331901,1753936244874,-460.0,0.00019178,2]
[376331902,1753936244884,-798.84,0.00019178,2]
[376331903,1753936244893,-460.0,0.00019178,2]
[376331904,1753936244902,-460.0,0.00019178,2]
[376331905,1753936244912,-460.0,0.00019178,2]
[376331906,1753936244923,-460.0,0.00019178,2]
[376331907,1753936244932,-460.0,0.00019178,2]
[376331908,1753936244942,-417.25591324,0.00019178,2]
[376331909,1753936244951,-460.0,0.00019178,2]
[376331910,1753936244960,-460.0,0.00019178,2]
[376331911,1753936244969,-460.0,0.00019178,2]
[376331912,1753936244978,-460.0,0.00019178,2]
[376331913,1753936244987,-460.0,0.00019178,2]
[376331914,1753936244996,-460.0,0.00019178,2]
[376331915,1753936245005,-460.0,0.00019178,2]
[376331916,1753936245015,-460.0,0.00019178,2]
[376331917,1753936245025,-460.0,0.00019178,2]
[376331918,1753936245034,-460.0,0.00019178,2]
[376331919,1753936245043,-460.0,0.00019178,2]